fUST/lending_fUST_20250814
["ID","MTS","AMOUNT","RATE_DAILY","PERIOD"]
[379154257,1755168559601,5000.0,0.00017228,2]
[379154259,1755168566177,1655.02401876,0.00017207,2]
[379154261,1755168575590,1131.0672298,0.00017228,2]
[379154262,1755168575615,3868.9327702,0.00017228,2]
[379154282,1755168591444,5000.0,0.00017228,2]
[379154287,1755168607074,1131.0672298,0.00017228,2]
[379154288,1755168607098,3868.9327702,0.00017228,2]
[379154291,1755168622859,5000.0,0.00017228,2]
[379154319,1755168632616,1131.0672298,0.00017206,2]
[379154320,1755168632639,10000.0,0.00017206,2]
[379154321,1755168632662,2776.18536712,0.00017206,2]
[379154335,1755168635071,-300.0,0.00017306,2]
[379154336,1755168635082,-1158.28589891,0.00017306,2]
[379154337,1755168635094,-41.71410109,0.00017306,2]
[379154338,1755168635105,-460.0,0.00017307,2]
[379154339,1755168635117,-460.0,0.00017307,2]
[379154340,1755168635126,-349.73989569,0.00017307,2]
[379154341,1755168635136,-461.84255793,0.00017307,2]
[379154342,1755168635146,-460.0,0.00017307,2]
[379154343,1755168635155,-460.0,0.00017307,2]
[379154344,1755168635165,-460.0,0.00017307,2]
[379154345,1755168635175,-4860.45,0.00017307,2]
[379154346,1755168635185,-2302.53,0.00017307,2]
[379154347,1755168635194,-460.0,0.00017307,2]
[379154348,1755168635204,-460.0,0.00017307,2]
[379154349,1755168635214,-460.0,0.00017307,2]
[379154350,1755168635223,-1024.96,0.00017307,2]
[379154351,1755168635233,-474.98,0.00017307,2]
[379154352,1755168635243,-460.0,0.00017307,2]
[379154353,1755168635255,-460.0,0.00017307,2]
[379154354,1755168635265,-553.47790259,0.00017307,2]
[379154355,1755168635274,-2061.68,0.00017307,2]
[379154356,1755168635284,-890.57,0.00017307,2]
[379154357,1755168635294,-2802.19,0.00017307,2]
[379154358,1755168635304,-3892.42,0.00017307,2]
[379154359,1755168635313,-460.0,0.00017307,2]
[379154360,1755168635323,-460.0,0.00017307,2]
[379154361,1755168635332,-460.0,0.00017307,2]
[379154362,1755168635342,-1379.22,0.00017307,2]
[379154363,1755168635352,-460.0,0.00017307,2]
[379154364,1755168635361,-540.87249463,0.00017307,2]
[379154365,1755168635371,-460.0,0.00017307,2]
[379154366,1755168635380,-575.8,0.00017307,2]
[379154367,1755168635390,-460.32,0.00017307,2]
[379154368,1755168635399,-649.94,0.00017307,2]
[379154369,1755168635408,-759.99,0.00017307,2]
[379154370,1755168635418,-460.0,0.00017307,2]
[379154371,1755168635428,-846.68,0.00017307,2]
[379154372,1755168635438,-609.1,0.00017307,2]
[379154373,1755168635447,-514.79,0.00017307,2]
[379154374,1755168635457,-460.0,0.00017307,2]
[379154375,1755168635467,-2364.73,0.00017307,2]
[379154376,1755168635476,-584.86,0.00017307,2]
[379154377,1755168635486,-798.3,0.00017307,2]
[379154378,1755168635496,-574.75,0.00017307,2]
[379154379,1755168635508,-567.42,0.00017307,2]
[379154380,1755168635518,-1384.85,0.00017307,2]
[379154381,1755168635528,-460.0,0.00017307,2]
[379154382,1755168635537,-2684.01,0.00017307,2]
[379154383,1755168635546,-460.0,0.00017307,2]
[379154384,1755168635556,-460.0,0.00017307,2]
[379154385,1755168635565,-21023.23344621,0.00017307,2]
[379154433,1755168637967,-460.0,0.00017307,2]
[379154435,1755168637977,-7245.33919688,0.00017307,2]
[379154437,1755168637988,-19634.08679732,0.00017307,2]
[379154439,1755168637999,-2097.34055959,0.00017307,2]
[379154441,1755168638013,-151.0,0.00017308,2]
[379154443,1755168638022,-6730.78694041,0.00017308,2]
[379154449,1755168638076,-1222.32199608,0.00017308,2]
[379154453,1755168638087,-289.23104452,0.00017308,2]
[379154455,1755168638099,-1353.1442974,0.00017308,2]
[379154519,1755168638900,-1462.6962521,0.00017308,2]
[379154521,1755168638910,-151.0,0.00017308,2]
[379154523,1755168638920,-151.0,0.00017308,2]
[379154525,1755168638929,-151.0,0.00017308,2]
[379154527,1755168638939,-151.0,0.00017308,2]
[379154529,1755168638948,-151.0,0.00017308,2]
[379154531,1755168638958,-151.0,0.00017308,2]
[379154533,1755168638968,-62.40145679,0.00017308,2]
[379154535,1755168638980,-88.59854321,0.00017308,2]
[379154537,1755168638990,-151.0,0.00017308,2]
[379154539,1755168639000,-2414.25,0.00017308,3]
[379154541,1755168639013,-1323.45,0.00017308,3]
[379154543,1755168639023,-688.06,0.00017308,3]
[379154545,1755168639035,-344.03,0.00017308,3]
[379154547,1755168639045,-172.02,0.00017308,3]
[379154549,1755168639055,-516.07,0.00017308,3]
[379154551,1755168639064,-763.33,0.00017308,3]
[379154553,1755168639075,-392.38,0.00017308,3]
[379154555,1755168639085,-167.62,0.00017308,3]
[379154557,1755168639094,-565.91,0.00017308,3]
[379154559,1755168639104,-460.0,0.00017315,2]
[379154561,1755168639114,-460.0,0.00017315,2]
[379154563,1755168639124,-142.32741152,0.00017315,2]
[379154565,1755168639135,-317.67258848,0.00017315,2]
[379154567,1755168639145,-460.0,0.00017315,2]
[379154569,1755168639154,-460.0,0.00017315,2]
[379154571,1755168639164,-460.0,0.00017315,2]
[379154573,1755168639173,-614.6,0.00017315,2]
[379154575,1755168639182,-584.71,0.00017315,2]
[379154577,1755168639192,-460.0,0.00017315,2]
[379154579,1755168639201,-1389.18,0.00017315,2]
[379154581,1755168639210,-945.94,0.00017315,2]
[379154583,1755168639219,-460.0,0.00017315,2]
[379154585,1755168639229,-684.15,0.00017315,2]
[379154587,1755168639238,-703.88,0.00017315,2]
[379154589,1755168639248,-460.0,0.00017316,2]
[379154591,1755168639259,-514.92560196,0.00017316,2]
[379154594,1755168639269,-460.0,0.00017316,2]
[379154595,1755168639278,-460.0,0.00017316,2]
[379154597,1755168639288,-556.82947604,0.00017316,2]
[379154599,1755168639297,-460.0,0.00017316,2]
[379154601,1755168639306,-460.0,0.00017316,2]
[379154603,1755168639315,-692.3,0.00017316,2]
[379154605,1755168639325,-460.0,0.00017316,2]
[379154607,1755168639334,-460.0,0.00017316,2]
[379154609,1755168639343,-612.26,0.00017316,2]
[379154611,1755168639352,-1304.37873639,0.00017316,2]
[379154628,1755168639499,5000.0,0.00017228,2]
[379154709,1755168640290,-45.99126361,0.00017316,2]
[379154711,1755168640300,-1370.4235033,0.00017316,2]
[379154713,1755168640311,-750.7464967,0.00017316,2]
[379154715,1755168640321,-1328.76,0.00017316,2]
[379154717,1755168640330,-460.0,0.00017316,2]
[379154719,1755168640339,-460.0,0.00017316,2]
[379154721,1755168640348,-304.43650224,0.00017316,2]
[379154723,1755168640359,-155.56349776,0.00017316,2]
[379154725,1755168640369,-836.04,0.00017316,2]
[379154727,1755168640378,-460.0,0.00017316,2]
[379154729,1755168640387,-460.0,0.00017316,2]
[379154731,1755168640397,-918.52538513,0.00017316,2]
[379154733,1755168640408,-130.35461487,0.00017316,2]
[379154735,1755168640417,-460.0,0.00017316,2]
[379154737,1755168640427,-496.29299941,0.00017316,2]
[379154740,1755168640438,-335.72700059,0.00017316,2]
[379154742,1755168640448,-47.0349953,0.00017316,2]
[379154778,1755168640806,-412.9650047,0.00017316,2]
[379154780,1755168640815,-576.22,0.00017316,2]
[379154782,1755168640824,-952.39,0.00017316,2]
[379154784,1755168640833,-1531.71,0.00017316,2]
[379154786,1755168640843,-460.0,0.00017316,2]
[379154787,1755168640852,-891.01,0.00017316,2]
[379154788,1755168640861,-460.0,0.00017316,2]
[379154789,1755168640871,-1244.88,0.00017316,2]
[379154790,1755168640882,-460.0,0.00017316,2]
[379154791,1755168640891,-139.73525445,0.00017316,2]
[379154792,1755168640903,-320.26474555,0.00017316,2]
[379154793,1755168640912,-594.7633763,0.00017316,2]
[379154794,1755168640921,-460.0,0.00017316,2]
[379154795,1755168640930,-460.0,0.00017316,2]
[379154796,1755168640940,-460.0,0.00017316,2]
[379154797,1755168640949,-460.0,0.00017316,2]
[379154798,1755168640958,-496.67,0.00017316,2]
[379154799,1755168640968,-443.25187815,0.00017316,2]
[379154994,1755168643086,-458.57108174,0.00017307,2]
[379155016,1755168643297,-1.42891826,0.00017307,2]
[379155018,1755168643307,-432.87812185,0.00017316,2]
[379155020,1755168643316,-460.0,0.00017316,2]
[379155022,1755168643325,-460.0,0.00017316,2]
[379155024,1755168643334,-460.0,0.00017316,2]
[379155026,1755168643343,-460.0,0.00017316,2]
[379155027,1755168643352,-460.0,0.00017316,2]
[379155029,1755168643362,-460.0,0.00017316,2]
[379155031,1755168643371,-460.0,0.00017316,2]
[379155033,1755168643381,-709.27,0.00017316,2]
[379155035,1755168643390,-1461.63,0.00017316,2]
[379155037,1755168643401,-460.0,0.00017316,2]
[379155040,1755168643410,-460.0,0.00017316,2]
[379155042,1755168643420,-493.47,0.00017316,2]
[379155044,1755168643429,-466.82770987,0.00017316,2]
[379155046,1755168643439,-333.49154831,0.00017316,2]
[379155048,1755168643448,-500.0,0.00017316,2]
[379155050,1755168643457,-347.60108935,0.00017316,2]
[379155052,1755168643466,-1154.15,0.00017316,2]
[379155054,1755168643476,-670.87,0.00017316,2]
[379155056,1755168643485,-1281.53,0.00017317,2]
[379155058,1755168643494,-701.29,0.00017317,2]
[379155060,1755168643504,-5.56261036,0.00017317,2]
[379155323,1755168646115,-460.0,0.00017307,2]
[379155325,1755168646125,-460.0,0.00017307,2]
[379155327,1755168646135,-203.01637268,0.00017317,2]
[379155332,1755168646170,-296.53101696,0.00017317,2]
[379155334,1755168646180,-11784.48,0.00017317,2]
[379155336,1755168646189,-3523.12,0.00017317,2]
[379155338,1755168646199,-2290.50765547,0.00017317,2]
[379155352,1755168646328,-339.56336391,0.00017317,2]
[379155561,1755168648516,-10746.20898062,0.00017317,2]
[379155563,1755168648526,-1546.65,0.00017317,2]
[379155565,1755168648535,-1820.6,0.00017317,2]
[379155567,1755168648545,-10114.03,0.00017317,2]
[379155569,1755168648554,-1970.71,0.00017317,2]
[379155571,1755168648563,-248736.79200846,0.00017318,2]
[379155573,1755168648573,-607.52737369,0.00017321,2]
[379155575,1755168648583,-460.0,0.00017321,2]
[379155577,1755168648593,-461.33073786,0.00017321,2]
[379155579,1755168648603,-460.0,0.00017321,2]
[379155581,1755168648613,-460.0,0.00017321,2]
[379155583,1755168648624,-460.0,0.00017321,2]
[379155585,1755168648634,-460.0,0.00017321,2]
[379155587,1755168648643,-224.77094593,0.00017321,2]
[379155589,1755168648653,-460.0,0.00017321,2]
[379155591,1755168648663,-688.3,0.00017321,2]
[379155593,1755168648673,-460.0,0.00017321,2]
[379155595,1755168648683,-460.0,0.00017321,2]
[379155597,1755168648693,-460.0,0.00017321,2]
[379155599,1755168648703,-460.0,0.00017321,2]
[379155601,1755168648713,-277.72936854,0.00017321,2]
[379155603,1755168648723,-460.0,0.00017321,2]
[379155605,1755168648733,-460.0,0.00017321,2]
[379155607,1755168648743,-352.76817646,0.00017321,2]
[379155609,1755168648754,-460.0,0.00017321,2]
[379155611,1755168648767,-500.64,0.00017321,2]
[379155613,1755168648778,-351.44636609,0.00017321,2]
[379155615,1755168648787,-460.0,0.00017321,2]
[379155617,1755168648797,-460.0,0.00017321,2]
[379155619,1755168648806,-460.0,0.00017321,2]
[379155621,1755168648816,-460.0,0.00017321,2]
[379155623,1755168648826,-460.0,0.00017321,2]
[379155625,1755168648836,-460.0,0.00017321,2]
[379155627,1755168648846,-460.0,0.00017321,2]
[379155629,1755168648858,-460.0,0.00017321,2]
[379155631,1755168648867,-856.73,0.00017321,2]
[379155633,1755168648877,-460.0,0.00017321,2]
[379155635,1755168648886,-500.0,0.00017321,2]
[379155637,1755168648896,-500.0,0.00017321,2]
[379155639,1755168648906,-500.0,0.00017321,2]
[379155641,1755168648916,-996.11,0.00017321,2]
[379155643,1755168648925,-460.0,0.00017321,2]
[379155645,1755168648935,-227.12705748,0.00017321,2]
[379155647,1755168648945,-460.0,0.00017321,2]
[379155649,1755168648955,-460.0,0.00017321,2]
[379155651,1755168648965,-577.18,0.00017321,2]
[379155653,1755168648975,-1781.93,0.00017321,2]
[379155654,1755168648984,-1974.58,0.00017321,2]
[379155657,1755168648995,-460.0,0.00017321,2]
[379155659,1755168649005,-460.0,0.00017321,2]
[379155660,1755168649016,-460.0,0.00017321,2]
[379155662,1755168649026,-709.05,0.00017321,2]
[379155664,1755168649041,-460.0,0.00017321,2]
[379155666,1755168649051,-460.0,0.00017321,2]
[379155668,1755168649061,-460.0,0.00017321,2]
[379155670,1755168649070,-1119.92,0.00017321,2]
[379155672,1755168649081,-460.0,0.00017321,2]
[379155674,1755168649091,-460.0,0.00017321,2]
[379155676,1755168649100,-685.99,0.00017321,2]
[379155678,1755168649110,-460.0,0.00017321,2]
[379155680,1755168649120,-460.0,0.00017321,2]
[379155682,1755168649130,-460.0,0.00017321,2]
[379155684,1755168649140,-460.0,0.00017321,2]
[379155686,1755168649149,-460.0,0.00017321,2]
[379155688,1755168649159,-460.0,0.00017321,2]
[379155690,1755168649169,-460.0,0.00017321,2]
[379155693,1755168649178,-460.0,0.00017321,2]
[379155694,1755168649188,-460.0,0.00017321,2]
[379155696,1755168649197,-743.88,0.00017321,2]
[379155698,1755168649207,-460.0,0.00017321,2]
[379155700,1755168649217,-460.0,0.00017321,2]
[379155702,1755168649227,-460.0,0.00017321,2]
[379155704,1755168649236,-460.0,0.00017321,2]
[379155706,1755168649246,-460.0,0.00017321,2]
[379155708,1755168649255,-460.0,0.00017321,2]
[379155710,1755168649268,-460.0,0.00017321,2]
[379155712,1755168649278,-460.0,0.00017321,2]
[379155714,1755168649287,-460.0,0.00017321,2]
[379155716,1755168649297,-501.7,0.00017321,2]
[379155718,1755168649307,-460.0,0.00017321,2]
[379155720,1755168649316,-460.0,0.00017321,2]
[379155722,1755168649326,-460.0,0.00017321,2]
[379155724,1755168649336,-686.5,0.00017321,2]
[379155726,1755168649346,-460.0,0.00017321,2]
[379155728,1755168649355,-460.0,0.00017321,2]
[379155730,1755168649366,-533.88,0.00017321,2]
[379155732,1755168649376,-460.0,0.00017321,2]
[379155734,1755168649387,-460.0,0.00017321,2]
[379155736,1755168649397,-460.0,0.00017321,2]
[379155738,1755168649407,-460.0,0.00017321,2]
[379155740,1755168649417,-999.47,0.00017321,2]
[379155742,1755168649427,-520.49,0.00017321,2]
[379155744,1755168649437,-981.36,0.00017321,2]
[379155746,1755168649447,-656.2,0.00017321,2]
[379155748,1755168649456,-553.84178222,0.00017321,2]
[379155750,1755168649466,-591.11,0.00017321,2]
[379155752,1755168649475,-1050.98,0.00017321,2]
[379155754,1755168649485,-1248.31,0.00017321,2]
[379155756,1755168649495,-933.1,0.00017321,2]
[379155758,1755168649505,-460.0,0.00017321,2]
[379155760,1755168649517,-460.0,0.00017321,2]
[379155762,1755168649527,-460.0,0.00017321,2]
[379155764,1755168649537,-510.61,0.00017321,2]
[379155766,1755168649547,-460.0,0.00017321,2]
[379155768,1755168649556,-161.7571295,0.00017321,2]
[379155769,1755168649566,-460.0,0.00017321,2]
[379155771,1755168649576,-463.99785482,0.00017321,2]
[379155773,1755168649586,-460.0,0.00017321,2]
[379155775,1755168649596,-953.88,0.00017321,2]
[379155777,1755168649606,-460.0,0.00017321,2]
[379155779,1755168649616,-460.0,0.00017321,2]
[379155781,1755168649626,-460.0,0.00017321,2]
[379155783,1755168649636,-460.0,0.00017321,2]
[379155785,1755168649646,-460.0,0.00017321,2]
[379155787,1755168649656,-460.0,0.00017321,2]
[379155789,1755168649666,-504.94549371,0.00017321,2]
[379155791,1755168649678,-460.0,0.00017321,2]
[379155793,1755168649688,-460.0,0.00017321,2]
[379155796,1755168649698,-460.0,0.00017321,2]
[379155798,1755168649708,-226.5283538,0.00017321,2]
[379155799,1755168649718,-979.48,0.00017321,2]
[379155802,1755168649728,-460.0,0.00017321,2]
[379155804,1755168649738,-460.0,0.00017321,2]
[379155805,1755168649747,-2231.72,0.00017321,2]
[379155807,1755168649756,-460.0,0.00017321,2]
[379155809,1755168649769,-1355.63,0.00017321,2]
[379155811,1755168649778,-1566.99,0.00017321,2]
[379155813,1755168649788,-460.0,0.00017321,2]
[379155816,1755168649800,-460.0,0.00017321,2]
[379155818,1755168649809,-460.0,0.00017321,2]
[379155820,1755168649818,-1457.64,0.00017321,2]
[379155822,1755168649828,-460.0,0.00017321,2]
[379155824,1755168649837,-496.38115094,0.00017321,2]
[379155825,1755168649847,-460.0,0.00017321,2]
[379155827,1755168649856,-1405.25,0.00017321,2]
[379155829,1755168649866,-2000.01,0.00017321,2]
[379155831,1755168649875,-460.0,0.00017321,2]
[379155833,1755168649884,-460.0,0.00017321,2]
[379155835,1755168649894,-234.19080196,0.00017321,2]
[379155837,1755168649903,-460.0,0.00017321,2]
[379155839,1755168649912,-2784.59,0.00017321,2]
[379155841,1755168649922,-460.0,0.00017321,2]
[379155843,1755168649931,-159.16002101,0.00017321,2]
[379155845,1755168649941,-460.0,0.00017321,2]
[379155847,1755168649951,-460.0,0.00017321,2]
[379155849,1755168649960,-3945.19,0.00017321,2]
[379155851,1755168649969,-570.73890443,0.00017321,2]
[379155853,1755168649979,-460.0,0.00017321,2]
[379155855,1755168649988,-460.0,0.00017321,2]
[379155857,1755168649998,-460.45790305,0.00017321,2]
[379155859,1755168650007,-460.0,0.00017321,2]
[379155861,1755168650018,-460.0,0.00017321,2]
[379155863,1755168650028,-460.0,0.00017321,2]
[379155865,1755168650040,-460.0,0.00017321,2]
[379155868,1755168650052,-460.0,0.00017321,2]
[379155869,1755168650061,-460.0,0.00017321,2]
[379155871,1755168650070,-460.0,0.00017321,2]
[379155873,1755168650081,-460.0,0.00017321,2]
[379155875,1755168650090,-460.0,0.00017321,2]
[379155877,1755168650100,-1075.38,0.00017321,2]
[379155879,1755168650111,-460.0,0.00017321,2]
[379155881,1755168650120,-460.0,0.00017321,2]
[379155883,1755168650129,-460.0,0.00017321,2]
[379155885,1755168650139,-460.0,0.00017321,2]
[379155887,1755168650148,-460.0,0.00017321,2]
[379155889,1755168650157,-460.0,0.00017321,2]
[379155891,1755168650167,-460.0,0.00017321,2]
[379155893,1755168650176,-460.0,0.00017321,2]
[379155895,1755168650186,-460.0,0.00017321,2]
[379155897,1755168650195,-1609.04,0.00017321,2]
[379155899,1755168650205,-460.0,0.00017321,2]
[379155901,1755168650214,-460.0,0.00017321,2]
[379155903,1755168650224,-460.0,0.00017321,2]
[379155905,1755168650233,-460.0,0.00017321,2]
[379155907,1755168650243,-1109.05,0.00017321,2]
[379155909,1755168650252,-627.75,0.00017321,2]
[379155911,1755168650261,-4106.39,0.00017321,2]
[379155913,1755168650270,-466.54083904,0.00017321,2]
[379155915,1755168650279,-460.0,0.00017321,2]
[379155917,1755168650289,-466.79,0.00017321,2]
[379155918,1755168650300,-460.0,0.00017321,2]
[379155919,1755168650309,-543.47,0.00017321,2]
[379155920,1755168650319,-460.0,0.00017321,2]
[379155921,1755168650328,-460.0,0.00017321,2]
[379155922,1755168650338,-460.0,0.00017321,2]
[379155923,1755168650349,-460.0,0.00017321,2]
[379155924,1755168650359,-521.77,0.00017321,2]
[379155925,1755168650368,-460.0,0.00017321,2]
[379155926,1755168650377,-1000.0,0.00017321,2]
[379155927,1755168650387,-36.11107659,0.00017321,2]
[379155978,1755168651139,-277.67272097,0.00017306,2]
[379156211,1755168653470,-182.32727903,0.00017306,2]
[379156214,1755168653494,-136.89723127,0.00017307,2]
[379156620,1755168657524,-245.34930878,0.00017307,2]
[379156780,1755168659048,-265.17985577,0.00017306,2]
[379157813,1755168670494,-183.59764733,0.00017306,2]
[379158086,1755168673293,-116.40235267,0.00017306,2]
[379158089,1755168673316,-425.89556035,0.00017306,2]
[379158468,1755168676946,-34.10443965,0.00017306,2]
[379158471,1755168676968,-223.15475936,0.00017306,2]
[379158582,1755168678457,-192.68,0.00017306,2]
[379160964,1755168728259,2223.81463288,0.00017208,2]
[379160965,1755168728281,10000.0,0.00017208,2]
[379160966,1755168728303,10000.0,0.00017208,2]
[379160967,1755168728328,10000.0,0.00017208,2]
[379160968,1755168728352,10000.0,0.00017208,2]
[379160969,1755168728373,10000.0,0.00017208,2]
[379160970,1755168728396,10000.0,0.00017208,2]
[379160971,1755168728421,2757.32680562,0.00017208,2]
[379160976,1755168743567,949.962812,0.00013699,2]
[379160984,1755168842263,-44.16524064,0.00017306,2]
[379160985,1755168842284,-378.34459481,0.00017306,2]
[379160986,1755168844536,5000.0,0.00017228,2]
[379160987,1755168846108,-211.32322472,0.00017305,2]
[379160988,1755168847586,-88.67677528,0.00017305,2]
[379160989,1755168847608,-77.73710912,0.00017306,2]
[379160990,1755168849858,-3.91829607,0.00017306,2]
[379160991,1755168849881,-284.59323071,0.00017306,2]
[379160992,1755168851360,-52.94796422,0.00017306,2]
[379160993,1755168851382,-247.05203578,0.00017306,2]
[379160994,1755168854966,-212.94796422,0.00017306,2]
[379160995,1755168854987,-155.53603994,0.00017306,2]
[379160996,1755168858931,223.73164722,0.00017221,2]
[379160997,1755168858956,399.33737048,0.00017221,2]
[379160998,1755168860417,184.18583241,0.00017293,2]
[379160999,1755168861566,-518.48619686,0.00017293,2]
[379161000,1755168863633,-177.11,0.00017293,2]
[379161001,1755168865804,-452.24569003,0.00017293,2]
[379161002,1755168866187,893.3730119,0.0001478,2]
[379161003,1755168866209,1306.6269881,0.0001478,2]
[379161004,1755168869638,-249.85326718,0.00017293,2]
[379161005,1755168869907,2200.0,0.0001615,2]
[379161006,1755168876051,-442.69755408,0.00017293,2]
[379161007,1755168878140,-292.69115805,0.00017293,2]
[379161008,1755168880262,-271.199925,0.00017293,2]
[379161009,1755168884153,-193.82613533,0.00017293,2]
[379161010,1755168886242,252.61060333,0.00017206,2]
[379161011,1755168886450,-241.34877261,0.00017293,2]
[379161012,1755168889720,-279.66814272,0.00017293,2]
[379161013,1755168890778,6240.76240857,0.00017207,2]
[379161014,1755168890808,10000.0,0.00017207,2]
[379161015,1755168890837,10000.0,0.00017207,2]
[379161016,1755168890867,10000.0,0.00017207,2]
[379161017,1755168890896,10000.0,0.00017207,2]
[379161018,1755168890926,10000.0,0.00017207,2]
[379161019,1755168890962,10000.0,0.00017207,2]
[379161020,1755168890989,10000.0,0.00017207,2]
[379161021,1755168891020,10000.0,0.00017207,2]
[379161022,1755168891048,10000.0,0.00017207,2]
[379161023,1755168891073,10000.0,0.00017207,2]
[379161024,1755168891103,10000.0,0.00017207,2]
[379161025,1755168891135,10000.0,0.00017207,2]
[379161026,1755168891163,10000.0,0.00017207,2]
[379161027,1755168891199,10000.0,0.00017207,2]
[379161028,1755168891227,10000.0,0.00017207,2]
[379161029,1755168891251,10000.0,0.00017207,2]
[379161030,1755168891278,10000.0,0.00017207,2]
[379161031,1755168891309,10000.0,0.00017207,2]
[379161032,1755168892248,-311.2871883,0.00017207,2]
[379161033,1755168895491,-240.19874226,0.00017207,2]
[379161034,1755168898229,-257.7536585,0.00017207,2]
[379161035,1755168902111,-234.19330905,0.00017207,2]
[379161036,1755168906896,-189.20619937,0.00017206,2]
[379161037,1755168909255,-110.79380063,0.00017206,2]
[379161038,1755168909278,-144.78514741,0.00017207,2]
[379161040,1755168911570,-278.37838903,0.00017207,2]
[379161042,1755168913156,-263.97913976,0.00017207,2]
[379161043,1755168916077,-176.26962446,0.00017207,2]
[379161044,1755168920533,-160.90648147,0.00017193,2]
[379161045,1755168920557,-74.41799153,0.00017207,2]
[379161047,1755168922627,-232.69793018,0.00017207,2]
[379161048,1755168924143,-266.83070884,0.00017207,2]
[379161049,1755168926267,-395.39899585,0.00017207,2]
[379161050,1755168928265,-200.6999928,0.00017207,2]
[379161051,1755168931026,-327.36808057,0.00017207,2]
[379161052,1755168933808,-300.0,0.00016307,2]
[379161053,1755168935928,-166.42584238,0.00016307,2]
[379161054,1755168937605,-318.85648785,0.00016307,2]
[379161055,1755168940351,-300.99477918,0.00016307,2]
[379161056,1755168942464,-211.03874077,0.00016307,2]
[379161057,1755168944586,-169.19780497,0.00016307,2]
[379161058,1755168947801,-165.93516691,0.00016307,2]
[379161059,1755168949451,-312.39285337,0.00016307,2]
[379161060,1755168952059,-228.94649826,0.00016307,2]
[379161061,1755168954646,-163.43239508,0.00016307,2]
[379161062,1755168957450,-250.37310722,0.00016307,2]
[379161063,1755168959448,-197.82291034,0.00016307,2]
[379161064,1755168960932,-195.57392048,0.00016307,2]
[379161065,1755168964028,-178.93098434,0.00016306,2]
[379161066,1755168967859,-121.06901566,0.00016306,2]
[379161067,1755168967883,-279.87533384,0.00016307,2]
[379161068,1755168968832,-79098.51463425,0.00016307,2]
[379161069,1755168969684,-169.19780497,0.00017107,2]
[379161070,1755168969707,-74.29346249,0.00017207,2]
[379161071,1755168971856,-234.28565764,0.00017207,2]
[379161072,1755168976420,-185.98539516,0.00017207,2]
[379161073,1755168981188,-152.0332552,0.00017207,2]
[379161074,1755168982748,-246.66470153,0.00017207,2]
[379161075,1755168984223,-382.04836869,0.00017207,2]
[379161076,1755169001506,156.289683,0.0002208,30]
[379161077,1755169010425,-312.73382983,0.00017206,2]
[379161079,1755169027978,365.48536575,0.00016303,2]
[379161082,1755169046917,-27196.0,0.00016303,2]
[379161083,1755169047573,5000.0,0.00016303,2]
[379161086,1755169063467,5000.0,0.00016303,2]
[379161089,1755169078736,5000.0,0.00016303,2]
[379161090,1755169093981,5000.0,0.00016303,2]
[379161091,1755169095094,-74.82421935,0.00016303,2]
[379161092,1755169095117,-84.29966052,0.00016437,2]
[379161093,1755169097588,-155.6085644,0.00016437,2]
[379161094,1755169099722,-60.09177508,0.00016437,2]
[379161095,1755169099744,-273.14947579,0.00016438,2]
[379161096,1755169102051,-244.7350357,0.00016438,2]
[379161098,1755169103617,-180.90390237,0.00016438,2]